[Event "*** Titled Tuesday 3|2 Blitz"]
[Site "Chess.com"]
[Date "2016.09.06"]
[Round "5"]
[White "hypert"]
[Black "jposthuma"]
[Result "1-0"]
[WhiteElo "2335"]
[BlackElo "2161"]
[TimeControl "180+2"]
[EndTime "17:57:55 PDT"]
[Termination "hypert won by resignation"]

1. e4 {[%clk 0:03:01.8]} 1... c6 {[%clk 0:03:00.9]} 2. Nf3 {[%clk 0:03:00.7]}
2... d5 {[%clk 0:03:02.8]} 3. Nc3 {[%clk 0:03:01.9]} 3... Nf6 {[%clk 0:03:03.5]}
4. e5 {[%clk 0:03:02.7]} 4... Ne4 {[%clk 0:03:04.8]} 5. d4 {[%clk 0:02:59.1]}
5... c5 {[%clk 0:03:04.3]} 6. dxc5 {[%clk 0:02:55.4]} 6... Nxc3 {[%clk
0:03:04.1]} 7. bxc3 {[%clk 0:02:56.1]} 7... Bg4 {[%clk 0:03:02.7]} 8. Bb5+
{[%clk 0:02:55.6]} 8... Nc6 {[%clk 0:03:02.9]} 9. Bxc6+ {[%clk 0:02:56]} 9...
bxc6 {[%clk 0:03:03.7]} 10. Be3 {[%clk 0:02:56.9]} 10... e6 {[%clk 0:02:57.8]}
11. O-O {[%clk 0:02:49.1]} 11... Qa5 {[%clk 0:02:57.3]} 12. c4 {[%clk
0:02:40.8]} 12... Bxc5 {[%clk 0:02:56.2]} 13. cxd5 {[%clk 0:02:38.7]} 13... Bxe3
{[%clk 0:02:42.7]} 14. fxe3 {[%clk 0:02:34.7]} 14... Qxd5 {[%clk 0:02:33.6]} 15.
Qd4 {[%clk 0:02:31]} 15... Bxf3 {[%clk 0:02:13.6]} 16. Rxf3 {[%clk 0:02:30.6]}
16... O-O {[%clk 0:02:11.9]} 17. Qf4 {[%clk 0:02:21]} 17... Rab8 {[%clk
0:02:05.8]} 18. c4 {[%clk 0:02:13.5]} 18... Qd3 {[%clk 0:02:00.2]} 19. Raf1
{[%clk 0:02:06.3]} 19... Rb1 {[%clk 0:01:59.2]} 20. Qd4 {[%clk 0:02:02.6]} 20...
Rxf1+ {[%clk 0:01:52.4]} 21. Rxf1 {[%clk 0:02:04.5]} 21... Qxd4 {[%clk
0:01:41.3]} 22. exd4 {[%clk 0:02:06.4]} 22... Rd8 {[%clk 0:01:41.1]} 23. Rd1
{[%clk 0:02:05.1]} 23... f6 {[%clk 0:01:30.7]} 24. exf6 {[%clk 0:02:04.7]} 24...
gxf6 {[%clk 0:01:32.6]} 25. Kf2 {[%clk 0:02:06.1]} 25... e5 {[%clk 0:01:24.5]}
26. Ke3 {[%clk 0:02:06.3]} 26... Kf7 {[%clk 0:01:23.6]} 27. Rd2 {[%clk 0:02:01]}
27... Ke6 {[%clk 0:01:18.2]} 28. dxe5 {[%clk 0:01:58.1]} 28... Rxd2 {[%clk
0:01:17.6]} 29. Kxd2 {[%clk 0:02:00]} 29... Kxe5 {[%clk 0:01:16.5]} 30. Ke3
{[%clk 0:02:01.1]} 30... c5 {[%clk 0:01:14.8]} 31. g4 {[%clk 0:01:45.4]} 31...
f5 {[%clk 0:00:23.2]} 32. g5 {[%clk 0:01:32]} 32... Kd6 {[%clk 0:00:12.4]} 33.
Kf4 {[%clk 0:01:31.9]} 33... Ke6 {[%clk 0:00:13.6]} 34. h3 {[%clk 0:01:28.7]}
34... a6 {[%clk 0:00:11.5]} 35. a3 {[%clk 0:01:29.5]} 35... a5 {[%clk
0:00:05.7]} 36. a4 {[%clk 0:01:30.3]} 36... Kf7 {[%clk 0:00:03.8]} 37. Kxf5
{[%clk 0:01:31.1]} 37... Kg7 {[%clk 0:00:05.5]} 38. h4 {[%clk 0:01:32.2]} 38...
Kf7 {[%clk 0:00:06.7]} 39. h5 {[%clk 0:01:33.5]} 39... Kg7 {[%clk 0:00:08.1]}
40. g6 {[%clk 0:01:34.2]} 40... hxg6+ {[%clk 0:00:04.4]} 41. hxg6 {[%clk
0:01:36.1]} 41... Kg8 {[%clk 0:00:05.3]} 42. Kf6 {[%clk 0:01:34]} 42... Kf8
{[%clk 0:00:06.3]} 43. Ke5 {[%clk 0:01:35.1]} 43... Kg7 {[%clk 0:00:08.2]} 44.
Kd5 {[%clk 0:01:35.9]} 44... Kxg6 {[%clk 0:00:10.1]} 45. Kxc5 {[%clk 0:01:37.5]}
45... Kf7 {[%clk 0:00:12]} 46. Kb6 {[%clk 0:01:38.7]} 46... Ke7 {[%clk
0:00:13.3]} 47. c5 {[%clk 0:01:38.1]} 47... Kd7 {[%clk 0:00:09.5]} 48. Kb7
{[%clk 0:01:39.1]} 1-0

[Event "*** Titled Tuesday 3|2 Blitz"]
[Site "Chess.com"]
[Date "2016.09.06"]
[Round "5"]
[White "IamSchrodingersCat"]
[Black "Kouzari"]
[Result "0-1"]
[WhiteElo "2264"]
[BlackElo "2467"]
[TimeControl "180+2"]
[EndTime "17:58:03 PDT"]
[Termination "Kouzari won by resignation"]

1. e4 {[%clk 0:03:01.9]} 1... e6 {[%clk 0:03:01.3]} 2. d4 {[%clk 0:03:02.2]}
2... d5 {[%clk 0:03:03.2]} 3. Nc3 {[%clk 0:03:03.5]} 3... Nf6 {[%clk 0:03:04.2]}
4. Bg5 {[%clk 0:03:03.3]} 4... dxe4 {[%clk 0:03:04.1]} 5. Nxe4 {[%clk
0:03:03.8]} 5... Be7 {[%clk 0:03:05.7]} 6. Bxf6 {[%clk 0:02:57.8]} 6... gxf6
{[%clk 0:03:07.2]} 7. Nf3 {[%clk 0:02:57.9]} 7... f5 {[%clk 0:03:07.6]} 8. Nc3
{[%clk 0:02:58.7]} 8... Qd6 {[%clk 0:03:08.4]} 9. g3 {[%clk 0:02:46.8]} 9... Qb6
{[%clk 0:03:08.4]} 10. Qd2 {[%clk 0:02:40.3]} 10... Qxb2 {[%clk 0:03:08.2]} 11.
Rb1 {[%clk 0:02:41.3]} 11... Qa3 {[%clk 0:03:08.5]} 12. Bg2 {[%clk 0:02:39.9]}
12... c6 {[%clk 0:03:09.8]} 13. O-O {[%clk 0:02:35.3]} 13... Nd7 {[%clk
0:03:06.3]} 14. Rfe1 {[%clk 0:02:18.9]} 14... O-O {[%clk 0:02:56.6]} 15. Ne5
{[%clk 0:02:02.8]} 15... Nxe5 {[%clk 0:02:46.6]} 16. dxe5 {[%clk 0:02:01.6]}
16... Rd8 {[%clk 0:02:37.4]} 17. Qe3 {[%clk 0:01:59.6]} 17... Qc5 {[%clk
0:02:31]} 18. Qf3 {[%clk 0:01:58.6]} 18... Bf8 {[%clk 0:02:10.8]} 19. Qf4 {[%clk
0:01:33.8]} 19... Bg7 {[%clk 0:01:57.2]} 20. Re3 {[%clk 0:01:26.3]} 20... Rd4
{[%clk 0:01:46.5]} 21. Qg5 {[%clk 0:01:11]} 21... h6 {[%clk 0:01:31.3]} 22. Qh5
{[%clk 0:01:10]} 22... Rc4 {[%clk 0:01:28]} 23. Rd1 {[%clk 0:00:55.1]} 23... Qe7
{[%clk 0:01:20.9]} 24. h4 {[%clk 0:00:46.1]} 24... Bd7 {[%clk 0:01:13.9]} 25.
Bf1 {[%clk 0:00:31.7]} 25... Rc5 {[%clk 0:01:03.4]} 26. f4 {[%clk 0:00:32.4]}
26... Be8 {[%clk 0:01:01.7]} 27. Qf3 {[%clk 0:00:31.4]} 27... Rd8 {[%clk
0:00:59.2]} 28. Red3 {[%clk 0:00:25.2]} 28... Rxd3 {[%clk 0:00:59]} 29. Rxd3
{[%clk 0:00:27.1]} 29... Rc4 {[%clk 0:00:51]} 30. a3 {[%clk 0:00:19.6]} 30... a5
{[%clk 0:00:43.9]} 31. Rd6 {[%clk 0:00:17.2]} 31... Rxc3 {[%clk 0:00:42.1]} 32.
Qxc3 {[%clk 0:00:08.7]} 32... Qxd6 {[%clk 0:00:42.8]} 0-1

[Event "*** Titled Tuesday 3|2 Blitz"]
[Site "Chess.com"]
[Date "2016.09.06"]
[Round "5"]
[White "ChessFrois"]
[Black "Kawhi_Leonard2"]
[Result "0-1"]
[WhiteElo "2022"]
[BlackElo "2039"]
[TimeControl "180+2"]
[EndTime "17:58:04 PDT"]
[Termination "Kawhi_Leonard2 won on time"]

1. e4 {[%clk 0:02:36.8]} 1... c5 {[%clk 0:02:59.8]} 2. Nf3 {[%clk 0:02:37.4]}
2... d6 {[%clk 0:02:59.7]} 3. d4 {[%clk 0:02:32.4]} 3... cxd4 {[%clk 0:03:01.6]}
4. Nxd4 {[%clk 0:02:34]} 4... Nf6 {[%clk 0:03:02.8]} 5. Nc3 {[%clk 0:02:35.4]}
5... g6 {[%clk 0:03:04.4]} 6. Be3 {[%clk 0:02:34.9]} 6... Bg7 {[%clk 0:03:05.7]}
7. f3 {[%clk 0:02:35]} 7... O-O {[%clk 0:03:06.3]} 8. Qd2 {[%clk 0:02:36.5]}
8... Nc6 {[%clk 0:03:07.7]} 9. O-O-O {[%clk 0:02:37]} 9... d5 {[%clk 0:03:08.4]}
10. exd5 {[%clk 0:02:37.4]} 10... Nxd5 {[%clk 0:03:09.1]} 11. Nxc6 {[%clk
0:02:39]} 11... bxc6 {[%clk 0:03:09.9]} 12. Bd4 {[%clk 0:02:40.3]} 12... e5
{[%clk 0:03:10.7]} 13. Bc5 {[%clk 0:02:40.9]} 13... Be6 {[%clk 0:03:12.2]} 14.
Ne4 {[%clk 0:02:41.3]} 14... Re8 {[%clk 0:03:11.6]} 15. Bc4 {[%clk 0:02:41.8]}
15... h6 {[%clk 0:03:04.7]} 16. g4 {[%clk 0:02:40.5]} 16... Qc7 {[%clk
0:03:04.3]} 17. h4 {[%clk 0:02:32.2]} 17... Rad8 {[%clk 0:03:02.4]} 18. Qf2
{[%clk 0:02:10.4]} 18... Nf4 {[%clk 0:03:03.1]} 19. Bxe6 {[%clk 0:02:08]} 19...
Nxe6 {[%clk 0:03:03.2]} 20. g5 {[%clk 0:02:08.9]} 20... h5 {[%clk 0:02:56.4]}
21. Qe3 {[%clk 0:01:58.3]} 21... Nd4 {[%clk 0:02:14.8]} 22. Nf6+ {[%clk
0:01:26.1]} 22... Bxf6 {[%clk 0:02:14.8]} 23. gxf6 {[%clk 0:01:28]} 23... Nf5
{[%clk 0:02:12.8]} 24. Qg5 {[%clk 0:01:22.3]} 24... Qa5 {[%clk 0:01:57.5]} 25.
Ba3 {[%clk 0:01:21.1]} 25... Rd5 {[%clk 0:01:56.8]} 26. Rhg1 {[%clk 0:00:59.9]}
26... Red8 {[%clk 0:01:38.2]} 27. Rxd5 {[%clk 0:00:49.7]} 27... Qxd5 {[%clk
0:01:38.9]} 28. b3 {[%clk 0:00:38.2]} 28... Qxf3 {[%clk 0:01:36.9]} 29. Be7
{[%clk 0:00:33.4]} 29... Rd4 {[%clk 0:01:24.7]} 30. Bc5 {[%clk 0:00:25.3]} 30...
Rxh4 {[%clk 0:01:13.1]} 31. Rd1 {[%clk 0:00:18.5]} 31... Rh1 {[%clk 0:01:05.3]}
32. Qd2 {[%clk 0:00:15.4]} 32... Rxd1+ {[%clk 0:01:02.9]} 33. Qxd1 {[%clk
0:00:15.9]} 33... Qxd1+ {[%clk 0:01:03.5]} 34. Kxd1 {[%clk 0:00:17.8]} 34... a6
{[%clk 0:00:54.3]} 35. Ke2 {[%clk 0:00:18.6]} 35... e4 {[%clk 0:00:53.5]} 36. c4
{[%clk 0:00:13]} 36... g5 {[%clk 0:00:48.5]} 0-1

[Event "*** Titled Tuesday 3|2 Blitz"]
[Site "Chess.com"]
[Date "2016.09.06"]
[Round "5"]
[White "Rumpel-VK"]
[Black "spirals5"]
[Result "1-0"]
[WhiteElo "2440"]
[BlackElo "2263"]
[TimeControl "180+2"]
[EndTime "17:58:05 PDT"]
[Termination "Rumpel-VK won by checkmate"]

1. e4 {[%clk 0:03:01.9]} 1... c5 {[%clk 0:03:00.7]} 2. g3 {[%clk 0:03:01.6]}
2... e6 {[%clk 0:03:01.3]} 3. Bg2 {[%clk 0:03:02]} 3... Nc6 {[%clk 0:03:02.3]}
4. d3 {[%clk 0:03:01.5]} 4... Nf6 {[%clk 0:03:00.8]} 5. f4 {[%clk 0:02:59.1]}
5... d5 {[%clk 0:03:00.9]} 6. e5 {[%clk 0:02:59.9]} 6... Nd7 {[%clk 0:03:00.8]}
7. Nf3 {[%clk 0:03:00.6]} 7... Be7 {[%clk 0:03:01.3]} 8. O-O {[%clk 0:03:01]}
8... O-O {[%clk 0:03:02.1]} 9. c4 {[%clk 0:02:47.6]} 9... dxc4 {[%clk
0:03:02.2]} 10. dxc4 {[%clk 0:02:46.8]} 10... Nb6 {[%clk 0:03:03.2]} 11. b3
{[%clk 0:02:41.9]} 11... Qxd1 {[%clk 0:03:02.5]} 12. Rxd1 {[%clk 0:02:42.1]}
12... Rd8 {[%clk 0:02:58.9]} 13. Rxd8+ {[%clk 0:02:40.4]} 13... Nxd8 {[%clk
0:02:59.5]} 14. Nc3 {[%clk 0:02:38.7]} 14... Bd7 {[%clk 0:03:00.4]} 15. Be3
{[%clk 0:02:33.2]} 15... Bc6 {[%clk 0:02:59.7]} 16. Rd1 {[%clk 0:02:32.7]} 16...
h6 {[%clk 0:02:52.5]} 17. Nd2 {[%clk 0:02:28.7]} 17... Bxg2 {[%clk 0:02:52.2]}
18. Kxg2 {[%clk 0:02:29.7]} 18... Rc8 {[%clk 0:02:46.5]} 19. Nde4 {[%clk
0:02:26.9]} 19... a6 {[%clk 0:02:31.7]} 20. Kf3 {[%clk 0:02:20.4]} 20... Kf8
{[%clk 0:02:25.6]} 21. g4 {[%clk 0:02:17.8]} 21... Ke8 {[%clk 0:02:24.3]} 22.
Nd6+ {[%clk 0:02:07]} 22... Bxd6 {[%clk 0:02:24.9]} 23. Rxd6 {[%clk 0:02:07.9]}
23... Nd7 {[%clk 0:02:22.6]} 24. Ne4 {[%clk 0:02:07.6]} 24... Ke7 {[%clk
0:02:04.3]} 25. h4 {[%clk 0:01:57.8]} 25... b6 {[%clk 0:01:57.2]} 26. h5 {[%clk
0:01:56.5]} 26... Nb7 {[%clk 0:01:51.3]} 27. Rd1 {[%clk 0:01:53.9]} 27... Nb8
{[%clk 0:01:51.6]} 28. Nc3 {[%clk 0:01:41.5]} 28... Rd8 {[%clk 0:01:45.1]} 29.
Rg1 {[%clk 0:01:41.5]} 29... Kd7 {[%clk 0:01:25]} 30. g5 {[%clk 0:01:39.8]}
30... hxg5 {[%clk 0:01:25.5]} 31. Rxg5 {[%clk 0:01:39.6]} 31... Rg8 {[%clk
0:01:22.5]} 32. h6 {[%clk 0:01:36.6]} 32... g6 {[%clk 0:01:23]} 33. Ne4 {[%clk
0:01:37.3]} 33... Rh8 {[%clk 0:01:22.6]} 34. Nf6+ {[%clk 0:01:35.3]} 34... Ke7
{[%clk 0:01:20.8]} 35. Rg1 {[%clk 0:01:32.3]} 35... Nd7 {[%clk 0:01:21.2]} 36.
Bc1 {[%clk 0:01:17.5]} 36... Nxf6 {[%clk 0:01:20.8]} 37. exf6+ {[%clk
0:01:17.7]} 37... Kd7 {[%clk 0:01:17.2]} 38. f5 {[%clk 0:01:02.6]} 38... exf5
{[%clk 0:01:14.4]} 39. Bf4 {[%clk 0:01:00.7]} 39... Kc6 {[%clk 0:00:42.4]} 40.
Re1 {[%clk 0:00:52.3]} 40... Nd6 {[%clk 0:00:36.1]} 41. Re7 {[%clk 0:00:51.7]}
41... Rh7 {[%clk 0:00:36.5]} 42. a4 {[%clk 0:00:42.1]} 42... a5 {[%clk
0:00:37.1]} 43. Ke3 {[%clk 0:00:38.5]} 43... Ne4 {[%clk 0:00:34.8]} 44. Rc7#
{[%clk 0:00:38.3]} 1-0

[Event "*** Titled Tuesday 3|2 Blitz"]
[Site "Chess.com"]
[Date "2016.09.06"]
[Round "5"]
[White "Iball95"]
[Black "saraswathii"]
[Result "1-0"]
[WhiteElo "2473"]
[BlackElo "2115"]
[TimeControl "180+2"]
[EndTime "17:58:50 PDT"]
[Termination "Iball95 won by resignation"]

1. Nf3 {[%clk 0:03:01.9]} 1... Nc6 {[%clk 0:03:00.1]} 2. d4 {[%clk 0:03:00.4]}
2... d5 {[%clk 0:03:00.4]} 3. g3 {[%clk 0:03:00.3]} 3... Bf5 {[%clk 0:02:59.3]}
4. Bg2 {[%clk 0:03:00.3]} 4... Qd7 {[%clk 0:02:49.6]} 5. h3 {[%clk 0:03:01.4]}
5... O-O-O {[%clk 0:02:47.5]} 6. g4 {[%clk 0:02:46.2]} 6... Bg6 {[%clk
0:02:40.8]} 7. Bf4 {[%clk 0:02:40.7]} 7... f6 {[%clk 0:02:41.2]} 8. Na3 {[%clk
0:02:31.2]} 8... Re8 {[%clk 0:02:34.5]} 9. O-O {[%clk 0:02:23.2]} 9... e5 {[%clk
0:02:31.6]} 10. dxe5 {[%clk 0:02:24.5]} 10... fxe5 {[%clk 0:02:32.2]} 11. Bg3
{[%clk 0:02:26.1]} 11... Nf6 {[%clk 0:02:24.9]} 12. c4 {[%clk 0:02:17.6]} 12...
d4 {[%clk 0:02:13.7]} 13. Qa4 {[%clk 0:02:15.8]} 13... e4 {[%clk 0:01:56.4]} 14.
Nh4 {[%clk 0:02:04.2]} 14... Bd6 {[%clk 0:01:34]} 15. Bxd6 {[%clk 0:02:04.4]}
15... Qxd6 {[%clk 0:01:35.9]} 16. Nb5 {[%clk 0:02:05.2]} 16... Qc5 {[%clk
0:01:36.3]} 17. b4 {[%clk 0:01:53]} 17... Nxb4 {[%clk 0:01:19.5]} 18. Nxa7+
{[%clk 0:01:48.2]} 18... Kb8 {[%clk 0:01:19.9]} 19. Rab1 {[%clk 0:01:40.5]}
19... Qxa7 {[%clk 0:01:10.7]} 20. Qxb4 {[%clk 0:01:41.1]} 20... Re6 {[%clk
0:01:01.9]} 21. c5 {[%clk 0:01:37.6]} 21... Rd8 {[%clk 0:01:00.7]} 22. Rfc1
{[%clk 0:01:27.9]} 22... Kc8 {[%clk 0:00:45.2]} 23. Rb3 {[%clk 0:01:26]} 23...
Bf7 {[%clk 0:00:33.8]} 24. Nf5 {[%clk 0:01:21.8]} 24... Ra6 {[%clk 0:00:23.5]}
25. Rb2 {[%clk 0:01:13.8]} 25... g6 {[%clk 0:00:21.2]} 26. Nxd4 {[%clk
0:01:10.6]} 26... Nd5 {[%clk 0:00:21.2]} 27. Qd2 {[%clk 0:01:06.2]} 27... Ra4
{[%clk 0:00:19.5]} 28. e3 {[%clk 0:01:03]} 28... Nf6 {[%clk 0:00:17.8]} 29. c6
{[%clk 0:00:59.2]} 29... b6 {[%clk 0:00:15]} 30. Qc3 {[%clk 0:00:57.5]} 30...
Nd5 {[%clk 0:00:13.9]} 31. Qc2 {[%clk 0:00:56.2]} 31... Re8 {[%clk 0:00:10.7]}
32. Rd1 {[%clk 0:00:29.7]} 32... Nb4 {[%clk 0:00:08.8]} 33. Qd2 {[%clk
0:00:30.5]} 33... Nd3 {[%clk 0:00:08.2]} 34. Rc2 {[%clk 0:00:31.9]} 34... Rxa2
{[%clk 0:00:09]} 35. Bxe4 {[%clk 0:00:32]} 35... Rxc2 {[%clk 0:00:06.5]} 36.
Qxc2 {[%clk 0:00:32.4]} 36... Nb4 {[%clk 0:00:04.8]} 37. Qb1 {[%clk 0:00:32.4]}
37... Qa5 {[%clk 0:00:05.7]} 38. Bg2 {[%clk 0:00:32]} 38... Bd5 {[%clk
0:00:05.2]} 39. Bxd5 {[%clk 0:00:31.1]} 39... Nxd5 {[%clk 0:00:07.1]} 40. Qb2
{[%clk 0:00:31.6]} 40... Nc3 {[%clk 0:00:07.6]} 41. Ra1 {[%clk 0:00:32.5]} 41...
Na4 {[%clk 0:00:05.7]} 42. Qb3 {[%clk 0:00:30.7]} 1-0

[Event "*** Titled Tuesday 3|2 Blitz"]
[Site "Chess.com"]
[Date "2016.09.06"]
[Round "5"]
[White "ShimanovAlex"]
[Black "danir29"]
[Result "1-0"]
[WhiteElo "2557"]
[BlackElo "2408"]
[TimeControl "180+2"]
[EndTime "17:59:01 PDT"]
[Termination "ShimanovAlex won by resignation"]

1. d4 {[%clk 0:03:01.9]} 1... d5 {[%clk 0:02:59.7]} 2. Bf4 {[%clk 0:03:02.4]}
2... Nf6 {[%clk 0:02:59.7]} 3. e3 {[%clk 0:03:03.3]} 3... e6 {[%clk 0:02:59.2]}
4. Nd2 {[%clk 0:03:03]} 4... c5 {[%clk 0:03:00.6]} 5. c3 {[%clk 0:03:03.4]} 5...
Nc6 {[%clk 0:03:01.7]} 6. Bd3 {[%clk 0:03:03.5]} 6... Bd6 {[%clk 0:03:02.7]} 7.
Bxd6 {[%clk 0:03:02.6]} 7... Qxd6 {[%clk 0:03:03.7]} 8. f4 {[%clk 0:03:04.3]}
8... b6 {[%clk 0:03:04.7]} 9. Ngf3 {[%clk 0:03:05.2]} 9... Bb7 {[%clk 0:03:06]}
10. Ne5 {[%clk 0:03:05.4]} 10... O-O {[%clk 0:02:55.5]} 11. O-O {[%clk
0:03:05.5]} 11... Ne7 {[%clk 0:02:53.9]} 12. Qf3 {[%clk 0:03:05.1]} 12... Ne8
{[%clk 0:02:46.3]} 13. Qh3 {[%clk 0:03:04.8]} 13... g6 {[%clk 0:02:37.8]} 14.
Ndf3 {[%clk 0:02:56.6]} 14... f6 {[%clk 0:02:35.4]} 15. Ng4 {[%clk 0:02:31.5]}
15... Nf5 {[%clk 0:02:34.4]} 16. Rae1 {[%clk 0:02:31.6]} 16... Qe7 {[%clk
0:02:27.6]} 17. Nh6+ {[%clk 0:02:31.6]} 17... Kg7 {[%clk 0:02:21.5]} 18. Ng4
{[%clk 0:02:27.2]} 18... Ned6 {[%clk 0:02:21.2]} 19. Nf2 {[%clk 0:02:17.2]}
19... Ne4 {[%clk 0:01:58]} 20. g4 {[%clk 0:02:17.7]} 20... Nfd6 {[%clk
0:01:59.2]} 21. g5 {[%clk 0:02:18.2]} 21... fxg5 {[%clk 0:02:00]} 22. Bxe4
{[%clk 0:02:14.3]} 22... gxf4 {[%clk 0:01:33.2]} 23. Bd3 {[%clk 0:02:11.1]}
23... fxe3 {[%clk 0:01:27.6]} 24. Rxe3 {[%clk 0:02:12.1]} 24... Nf5 {[%clk
0:01:28.8]} 25. Bxf5 {[%clk 0:02:03.9]} 25... Rxf5 {[%clk 0:01:30.7]} 26. Ng4
{[%clk 0:02:04.7]} 26... Raf8 {[%clk 0:01:27.5]} 27. Ree1 {[%clk 0:01:55.5]}
27... Ba6 {[%clk 0:01:27.1]} 28. Rf2 {[%clk 0:01:55.9]} 28... Bd3 {[%clk
0:01:13.3]} 29. Nfe5 {[%clk 0:01:53.2]} 29... Rxf2 {[%clk 0:01:07.1]} 30. Nxf2
{[%clk 0:01:55.1]} 30... Bf5 {[%clk 0:00:59.5]} 31. Qg3 {[%clk 0:01:52.3]} 31...
cxd4 {[%clk 0:00:57.1]} 32. cxd4 {[%clk 0:01:54.2]} 32... Qb4 {[%clk 0:00:58.1]}
33. Qc3 {[%clk 0:01:55]} 33... Qxc3 {[%clk 0:00:57.2]} 34. bxc3 {[%clk
0:01:55.9]} 34... Rc8 {[%clk 0:00:59.1]} 35. Re3 {[%clk 0:01:55.9]} 35... g5
{[%clk 0:00:59.9]} 36. h3 {[%clk 0:01:56.5]} 36... h5 {[%clk 0:01:00.9]} 37. Kf1
{[%clk 0:01:57.1]} 37... Kf6 {[%clk 0:01:02.2]} 38. Ke2 {[%clk 0:01:58.3]} 38...
b5 {[%clk 0:01:01.8]} 39. Kd2 {[%clk 0:01:58.4]} 39... b4 {[%clk 0:01:01.1]} 40.
Nd7+ {[%clk 0:01:56.6]} 40... Ke7 {[%clk 0:01:00.5]} 41. Nc5 {[%clk 0:01:57.7]}
41... a5 {[%clk 0:01:00.4]} 42. cxb4 {[%clk 0:01:51]} 42... axb4 {[%clk
0:01:00.8]} 43. Kc1 {[%clk 0:01:52.7]} 43... Ra8 {[%clk 0:01:00.5]} 44. Kb2
{[%clk 0:01:53.8]} 44... Kd6 {[%clk 0:00:55.9]} 45. Nb3 {[%clk 0:01:43.1]} 45...
Rc8 {[%clk 0:00:55.1]} 46. Nc5 {[%clk 0:01:42.1]} 46... g4 {[%clk 0:00:53.7]}
47. hxg4 {[%clk 0:01:42.8]} 47... hxg4 {[%clk 0:00:55.2]} 48. Nh1 {[%clk
0:01:43.4]} 48... Rh8 {[%clk 0:00:52.1]} 49. Ng3 {[%clk 0:01:44.4]} 49... Rh3
{[%clk 0:00:51.3]} 50. Kb3 {[%clk 0:01:37.8]} 50... Bb1 {[%clk 0:00:50.8]} 51.
Kxb4 {[%clk 0:01:37.3]} 51... Bxa2 {[%clk 0:00:49.2]} 52. Rxe6+ {[%clk
0:01:38.2]} 52... Kc7 {[%clk 0:00:50.6]} 53. Nf5 {[%clk 0:01:32.9]} 53... Bb1
{[%clk 0:00:49.8]} 54. Ne3 {[%clk 0:01:32.5]} 54... Be4 {[%clk 0:00:48.7]} 55.
Nxg4 {[%clk 0:01:07]} 55... Rh4 {[%clk 0:00:46.3]} 56. Ne3 {[%clk 0:00:50.5]}
56... Bd3 {[%clk 0:00:44.2]} 57. Nxd5+ {[%clk 0:00:48.2]} 57... Kd8 {[%clk
0:00:44.1]} 58. Rd6+ {[%clk 0:00:46.6]} 58... Ke8 {[%clk 0:00:42.4]} 59. Nc7+
{[%clk 0:00:45.4]} 59... Ke7 {[%clk 0:00:42.1]} 60. Rd7+ {[%clk 0:00:46.4]}
60... Kf6 {[%clk 0:00:39.3]} 61. Nxd3 {[%clk 0:00:46.8]} 1-0

[Event "*** Titled Tuesday 3|2 Blitz"]
[Site "Chess.com"]
[Date "2016.09.06"]
[Round "5"]
[White "theprosecution1"]
[Black "ZapataCharlesS"]
[Result "0-1"]
[WhiteElo "2451"]
[BlackElo "2582"]
[TimeControl "180+2"]
[EndTime "17:59:17 PDT"]
[Termination "ZapataCharlesS won on time"]

1. d4 {[%clk 0:03:02]} 1... Nf6 {[%clk 0:02:59.8]} 2. c4 {[%clk 0:03:00.6]} 2...
e5 {[%clk 0:02:58.7]} 3. dxe5 {[%clk 0:03:01.2]} 3... Ne4 {[%clk 0:02:58.3]} 4.
a3 {[%clk 0:03:00.5]} 4... Nc6 {[%clk 0:02:52.5]} 5. Nf3 {[%clk 0:03:00.6]} 5...
d6 {[%clk 0:02:51.5]} 6. Qc2 {[%clk 0:02:58.8]} 6... Bf5 {[%clk 0:02:39.5]} 7.
Nc3 {[%clk 0:02:58.6]} 7... Nxf2 {[%clk 0:02:40.4]} 8. Qxf5 {[%clk 0:02:57.6]}
8... g6 {[%clk 0:02:40.7]} 9. Qf4 {[%clk 0:02:48.3]} 9... Nxh1 {[%clk
0:02:39.1]} 10. Nd5 {[%clk 0:02:40.4]} 10... Bg7 {[%clk 0:02:39.7]} 11. Nf6+
{[%clk 0:02:21.2]} 11... Kf8 {[%clk 0:02:37.9]} 12. Ng5 {[%clk 0:02:14.2]} 12...
Nxe5 {[%clk 0:02:23.8]} 13. Ngxh7+ {[%clk 0:02:03]} 13... Rxh7 {[%clk
0:02:25.7]} 14. Nxh7+ {[%clk 0:02:04.9]} 14... Kg8 {[%clk 0:02:25.6]} 15. Ng5
{[%clk 0:02:06.8]} 15... Qe7 {[%clk 0:02:26.1]} 16. e4 {[%clk 0:01:05.4]} 16...
f6 {[%clk 0:02:13.9]} 17. Nf3 {[%clk 0:01:03.9]} 17... f5 {[%clk 0:02:15.2]} 18.
Be2 {[%clk 0:00:59.6]} 18... Re8 {[%clk 0:02:01.2]} 19. Qg5 {[%clk 0:00:52.6]}
19... Nxf3+ {[%clk 0:01:55.1]} 20. gxf3 {[%clk 0:00:50.7]} 20... fxe4 {[%clk
0:01:56.3]} 21. Qxe7 {[%clk 0:00:50.1]} 21... Rxe7 {[%clk 0:01:58.1]} 22. fxe4
{[%clk 0:00:42.3]} 22... Rxe4 {[%clk 0:02:00]} 23. Kf1 {[%clk 0:00:43.9]} 23...
Rh4 {[%clk 0:01:46.6]} 24. Kg2 {[%clk 0:00:39.8]} 24... Be5 {[%clk 0:01:42.7]}
25. h3 {[%clk 0:00:35.6]} 25... Ng3 {[%clk 0:01:41.6]} 26. Bf3 {[%clk
0:00:35.9]} 26... Rd4 {[%clk 0:01:37.5]} 27. Be3 {[%clk 0:00:31.4]} 27... Rd3
{[%clk 0:01:31.6]} 28. Re1 {[%clk 0:00:32.1]} 28... Kg7 {[%clk 0:01:24.8]} 29.
Bxb7 {[%clk 0:00:26.4]} 29... Nf5 {[%clk 0:01:20.2]} 30. Bxa7 {[%clk 0:00:26]}
30... Rd2+ {[%clk 0:01:14.8]} 31. Kf3 {[%clk 0:00:24.5]} 31... Rxb2 {[%clk
0:01:16.7]} 32. Be4 {[%clk 0:00:21.8]} 32... Rb3+ {[%clk 0:01:13.3]} 33. Ke2
{[%clk 0:00:19.3]} 33... Rxa3 {[%clk 0:01:08.6]} 34. Bf2 {[%clk 0:00:15.7]}
34... Rxh3 {[%clk 0:01:04.8]} 35. c5 {[%clk 0:00:14.8]} 35... Kf6 {[%clk
0:01:01.8]} 36. cxd6 {[%clk 0:00:15.6]} 36... cxd6 {[%clk 0:01:03]} 37. Rd1
{[%clk 0:00:14.8]} 37... Ra3 {[%clk 0:01:02]} 38. Kf1 {[%clk 0:00:11.7]} 38...
Ra2 {[%clk 0:01:01.8]} 39. Bd5 {[%clk 0:00:11.7]} 39... Ra5 {[%clk 0:00:58]} 40.
Be4 {[%clk 0:00:13]} 40... g5 {[%clk 0:00:56.4]} 41. Bb6 {[%clk 0:00:14.1]}
41... Ra4 {[%clk 0:00:56]} 42. Bd8+ {[%clk 0:00:15.1]} 42... Kf7 {[%clk
0:00:54.1]} 43. Bxf5 {[%clk 0:00:11.8]} 43... Rf4+ {[%clk 0:00:55.7]} 44. Ke2
{[%clk 0:00:11.1]} 44... Rxf5 {[%clk 0:00:57.6]} 45. Ke3 {[%clk 0:00:10.4]}
45... g4 {[%clk 0:00:56]} 46. Bh4 {[%clk 0:00:08.8]} 46... Rf3+ {[%clk
0:00:54.9]} 47. Ke4 {[%clk 0:00:09.8]} 47... Ke6 {[%clk 0:00:56.3]} 48. Bg5
{[%clk 0:00:04.2]} 48... Ra3 {[%clk 0:00:49.8]} 49. Be3 {[%clk 0:00:03.7]} 49...
d5+ {[%clk 0:00:41.9]} 50. Rxd5 {[%clk 0:00:03.5]} 50... Rxe3+ {[%clk
0:00:43.5]} 51. Kxe3 {[%clk 0:00:03.6]} 51... Kxd5 {[%clk 0:00:45.4]} 0-1